Cogmind - Beta 17.1 @@@ ROGUE MODE // 2026.08.26 @ 23:53:46 Player: SnailSD Result: Destroyed by G-67 Veteran with Plasma Rifle Performance ------------- Evolutions (7) 3500 Regions Visited (20) 4000 Robots Destroyed (61) 305 Value Destroyed (1710) 1710 Prototype IDs (12) 240 Alien Tech Used (0) 0 Bonus (1500) 1500 TOTAL SCORE: 11255 Bonus ------- Entered DSFs 500 Met Warlord at Base 500 MAIN.C Attacked Warlord 500 Cogmind --------- Core Integrity 0/1300 Matter 9/300 Energy 96/100 System Corruption 9% Temperature Cool (12) Movement Core (50) Location -3/DSF Parts ------- > --- POWER (3) -------- (None) > --- PROPULSION (7) --- (None) > --- UTILITY (7) ------ (None) > --- WEAPON (4) ------- (None) > --- INVENTORY (5) ---- Light Particle Reactor Centrium Leg Q-thruster Peak State ------------ > --- POWER ------------ (None) > --- PROPULSION ------- Biometal Medium Treads Biometal Medium Treads Biometal Medium Treads Biometal Medium Treads > --- UTILITY ---------- Advanced Sensor Array Graphene Brace Advanced Hacking Suite > --- WEAPON ----------- Quantum Rifle Quantum Rifle > --- INVENTORY -------- Q-thruster Q-thruster [Rating: 67] Favorites ----------- Power Ion Engine Engine Ion Engine Power Core Nuclear Core Reactor Light Particle Reactor Propulsion Improved Flight Unit Treads Light Treads Leg Centrium Leg Wheel Compact Wheel Flight Unit Improved Flight Unit Utility Hacking Suite Device Microactuators Storage High-capacity Storage Unit Processor Improved Signal Interpreter Hackware Hacking Suite Protection Light Armor Plating Weapon Light Assault Rifle Energy Gun Medium Laser Energy Cannon Heavy Particle Cannon Ballistic Gun Light Assault Rifle Launcher Grenade Launcher Special Weapon RU-N14's Throwing Claymores v3 Slashing Weapon Katana Special Melee Weapon Advanced Datajack Build | -11 -10 -10 -9 -9 -9 -8 -8 -8 -7 -6 -6 -6 -5 -4 -4 -4 -4 -3 -3 -3 ------- Run | Yrd Mat Min Mat Min Exi Min Mat Sto Fac Fac Low Low Fac Fac Upp Upp War Pro Res DSF Slots Evolved 14 | . . . 2 . . . 2 . 2 2 . . 2 2 . . . . 2 . Power 2 | . . . . . . . . . . 1 . . . 1 . . . . . . Propulsion 5 | . . . . . . . . . 2 1 . . 1 1 . . . . . . Utility 5 | . . . . . . . 2 . . . . . 1 . . . . . 2 . Weapon 2 | . . . 2 . . . . . . . . . . . . . . . . . Parts Attached 91 | 7 5 2 6 2 . 2 8 11 8 1 2 . 2 2 1 . 5 4 . 23 Power 17 | 1 . . 1 . . . 1 1 2 1 1 . . 1 . . 1 1 . 6 Engine 7 | 1 . . 1 . . . . 1 1 . 1 . . . . . 1 1 . . Core 4 | . . . . . . . 1 . 1 1 . . . 1 . . . . . . Reactor 6 | . . . . . . . . . . . . . . . . . . . . 6 Propulsion 32 | 2 2 . 2 . . . 1 5 3 . . . 1 1 . . . 2 . 13 Treads 6 | 2 . . . . . . . . . . . . . . . . . . . 4 Leg 5 | . . . . . . . . . . . . . . . . . . . . 5 Wheel 8 | . 2 . 2 . . . 1 3 . . . . . . . . . . . . Hover . | . . . . . . . . . . . . . . . . . . . . . Flight 13 | . . . . . . . . 2 3 . . . 1 1 . . . 2 . 4 Utility 22 | 2 2 . 1 2 . . 4 2 3 . 1 . 1 . 1 . 1 1 . 1 Device 8 | 1 . . . 1 . . 2 . 1 . 1 . . . . . 1 . . 1 Storage 3 | 1 1 . . . . . . 1 . . . . . . . . . . . . Processor 1 | . . . . . . . . . 1 . . . . . . . . . . . Hackware 4 | . . . . . . . . . 1 . . . 1 . 1 . . 1 . . Protection 6 | . 1 . 1 1 . . 2 1 . . . . . . . . . . . . Artifact . | . . . . . . . . . . . . . . . . . . . . . Weapon 20 | 2 1 2 2 . . 2 2 3 . . . . . . . . 3 . . 3 Energy Gun 4 | . 1 . . . . . . . . . . . . . . . 1 . . 2 Energy Cannon 2 | . . . . . . 1 . 1 . . . . . . . . . . . . Ballistic Gun 5 | 2 . 1 2 . . . . . . . . . . . . . . . . . Ballistic Cannon . | . . . . . . . . . . . . . . . . . . . . . Launcher 3 | . . 1 . . . 1 . 1 . . . . . . . . . . . . Special Weapon 1 | . . . . . . . . . . . . . . . . . 1 . . . Impact Weapon . | . . . . . . . . . . . . . . . . . . . . . Slashing Weapon 3 | . . . . . . . 1 1 . . . . . . . . . . . 1 Piercing Weapon . | . . . . . . . . . . . . . . . . . . . . . Special Melee Weapon 2 | . . . . . . . 1 . . . . . . . . . 1 . . . Unidentified Prototypes 8 | . . . . 1 . . . 3 2 . . . . . . . 2 . . . Parts Lost 44 | . 1 1 2 . . . 2 6 1 . . . . 3 . 5 1 9 . 13 Power 11 | . . 1 . . . . 1 1 1 . . . . 2 . 1 . 2 . 2 Propulsion 20 | . . . 1 . . . 1 3 . . . . . . . 3 . 5 . 7 Utility 8 | . 1 . . . . . . 2 . . . . . 1 . . 1 2 . 1 Weapon 5 | . . . 1 . . . . . . . . . . . . 1 . . . 3 Highest Loss Streak 7 | . 1 1 2 . . . 2 3 1 . . . . 1 . 5 1 7 . 5 To Critical Strikes . | . . . . . . . . . . . . . . . . . . . . . Average Backups 12 | 4 13 19 19 19 20 20 19 19 5 3 4 5 4 4 5 5 4 1 1 1 Power . | . 1 1 . . . . . 1 . 1 1 1 1 . . . . . . . Propulsion 4 | 2 4 5 6 7 7 7 6 5 2 1 1 1 . . . . . . . 1 Utility 5 | . 4 9 9 8 8 8 8 7 . . 1 2 1 1 2 3 2 . . . Weapon 2 | . 2 3 2 3 4 4 3 3 1 1 1 1 1 1 1 1 1 1 1 . Tool/Special . | . . . . . . . . . . . . . . . . . . . . . Unused Backups 32 | 2 . . 7 1 . . 3 8 10 . . . . . . . . . . 1 Power 3 | . . . . . . . . 1 2 . . . . . . . . . . . Propulsion 13 | 2 . . 3 . . . 1 5 1 . . . . . . . . . . 1 Utility 12 | . . . 3 1 . . 2 2 4 . . . . . . . . . . . Weapon 3 | . . . 1 . . . . . 2 . . . . . . . . . . . Tool/Special 1 | . . . . . . . . . 1 . . . . . . . . . . . Average Slot Usage (%) 76 | . 93 87 96 100 100 99 72 68 74 77 79 80 81 72 66 64 47 44 14 28 Engine 5 | . 13 2 9 11 11 11 6 . 6 . . 6 5 1 . . . 6 . . Core 2 | . . . . . . . 1 7 . 10 11 6 5 9 5 3 . . . . Wheel 12 | . 22 28 21 22 22 22 18 15 . . . . . . . . . . . . Flight 8 | . . . . . . . . . 28 33 33 33 35 29 29 29 15 14 . 4 Device 7 | . 3 . . . . . 17 17 9 13 13 13 11 9 5 5 5 5 4 7 Storage 6 | . 14 14 11 11 11 11 9 9 . . . . . . . . . . . . Processor 1 | . . . . . . . . . 6 6 6 6 5 5 5 5 5 . . . Hackware 3 | . . . . . . . . . 6 6 6 6 10 10 14 15 15 13 9 4 Protection 6 | . 5 14 11 11 11 11 9 8 4 . . . . . . . . . . . Energy Gun 3 | . 4 . 10 11 11 9 . . . . . . . . . . . . . 2 Ballistic Gun 11 | . 22 21 31 33 33 33 2 . . . . . . . . . . . . . Slashing Weapon 3 | . . . . . . . 8 9 7 6 6 6 5 5 5 4 . . . . Peak Build Rating 67 | 8 9 9 13 20 13 15 23 27 39 43 46 46 53 62 47 47 46 48 16 67 Average Rating 25 | 5 7 8 11 13 13 13 19 23 36 42 44 46 52 53 45 45 35 36 16 43 On Entrance 25 | . 8 9 8 11 13 13 13 23 27 38 43 46 46 53 37 47 28 41 16 16 Avg Prop Armor Cover (%) 7 | . . . . . . . . 3 . . . . . . 6 6 . . . 21 Naked Turns 22 | . . . . . . . . . . . . . . . . . . . . 22 Heaviest Build 103 | 14 51 47 57 57 55 56 61 103 20 18 25 25 25 32 14 14 24 15 1 42 Greatest Support 150 | 40 40 32 32 32 32 32 32 32 20 25 25 25 30 37 25 27 15 21 3 150 Greatest Overweight (x) 20 | . 2 1 3 1 1 1 3 20 . . . . . . . . 1 . . 4 Average Overweight (x) . | . . 1 1 1 1 1 1 3 . . . . . . . . . . . . Largest Inventory Capacity 25 | 8 20 20 20 20 20 20 20 25 25 5 5 5 5 5 5 5 5 5 5 5 Average Capacity 14 | 7 18 20 20 20 20 20 20 21 5 5 5 5 5 5 5 5 5 5 5 5 Most Carried 22 | 8 18 20 20 20 20 20 20 21 22 4 5 5 5 5 5 5 5 3 1 5 Average Carried 13 | 4 13 19 19 19 20 20 19 19 4 3 4 5 4 4 4 5 4 1 1 1 Final Capacity 25 | 8 20 20 20 20 20 20 20 25 5 5 5 5 5 5 5 5 5 5 5 5 Final Carried 21 | 8 18 20 20 20 20 20 20 21 5 3 5 5 5 5 5 5 3 1 1 3 Class Distribution -------------------- 35% | Mutant 29% | Tank 13% | Hacker-Sprinter 10% | Hacker-Mutant 9% | Sprinter Dominant Class ---------------- Mutant | -10/Materials Mutant | -10/Mines Tank | -9/Materials Tank | -9/Mines Tank | -9/Exiles Tank | -8/Mines Mutant | -8/Materials Mutant | -8/Storage Sprinter | -7/Factory Sprinter | -6/Factory Sprinter | -6/Lower Caves Sprinter | -6/Lower Caves Hacker-Sprinter | -5/Factory Hacker-Sprinter | -4/Factory Hacker-Sprinter | -4/Upper Caves Hacker-Sprinter | -4/Upper Caves Hacker-Mutant | -4/Warlord Hacker-Mutant | -3/Proximity Caves Hacker-Mutant | -3/Research Mutant | -3/DSF Resources | -11 -10 -10 -9 -9 -9 -8 -8 -8 -7 -6 -6 -6 -5 -4 -4 -4 -4 -3 -3 -3 ----------- Run | Yrd Mat Min Mat Min Exi Min Mat Sto Fac Fac Low Low Fac Fac Upp Upp War Pro Res DSF Matter Collected 1475 | 296 160 . 325 145 . 32 137 183 . . 38 . 14 . 89 . . 41 . 15 Remotely . | . . . . . . . . . . . . . . . . . . . . . Salvage Created 1993 | 74 208 17 367 170 . 3 267 818 . . . . . . . . . 67 . 2 Parts 130 | 11 13 4 22 19 . 3 16 36 . . . . . . . . . 4 . 2 Haulers Intercepted 2 | . . . . . . . . 2 . . . . . . . . . . . . Recyclers Shooed 3 | 1 . 1 . . . . . 1 . . . . . . . . . . . . Parts Field Recycled . | . . . . . . . . . . . . . . . . . . . . . Retrieved Matter . | . . . . . . . . . . . . . . . . . . . . . Parts Self-Destructed 3 | . . . . . . . . . . . . . . . . 1 . 2 . . Prevented . | . . . . . . . . . . . . . . . . . . . . . Parts Restored . | . . . . . . . . . . . . . . . . . . . . . Kills | -11 -10 -10 -9 -9 -9 -8 -8 -8 -7 -6 -6 -6 -5 -4 -4 -4 -4 -3 -3 -3 ------- Run | Yrd Mat Min Mat Min Exi Min Mat Sto Fac Fac Low Low Fac Fac Upp Upp War Pro Res DSF Combat Hostiles Destroyed 43 | . 4 3 10 1 . 3 5 11 . . . . . . . . . 4 . 2 Melee 17 | . . . . . . . 5 11 . . . . . . . . . . . 1 Guns 13 | . 4 1 7 1 . . . . . . . . . . . . . . . . AOE 13 | . . 2 3 . . 3 . . . . . . . . . . . 4 . 1 Classes Destroyed 13 | 3 2 1 1 2 . . 1 2 . . . . . . . . . . . 1 Worker 8 | 1 . . 1 5 . . . 1 . . . . . . . . . . . . Builder 2 | . . . . 1 . . . 1 . . . . . . . . . . . . Tunneler 2 | 1 . . . 1 . . . . . . . . . . . . . . . . Hauler 2 | . . . . . . . . 2 . . . . . . . . . . . . Recycler 3 | 1 . . 1 . . . . 1 . . . . . . . . . . . . Operator 1 | . 1 . . . . . . . . . . . . . . . . . . . Swarmer 12 | . . 3 3 . . 3 . . . . . . . . . . . 3 . . Cutter 2 | . . . . . . . . . . . . . . . . . . . . 2 Grunt 19 | . 4 . 6 . . . 2 6 . . . . . . . . . 1 . . Duelist 1 | . . . . 1 . . . . . . . . . . . . . . . . Sentry 6 | . . . 1 . . . 1 4 . . . . . . . . . . . . Specialist 2 | . . . . . . . 2 . . . . . . . . . . . . . Hunter 1 | . . . . . . . . 1 . . . . . . . . . . . . Best Kill Streak 5 | 2 2 3 4 4 . 3 5 4 . . . . . . . . . 3 . 1 Combat Bots Only 5 | . 2 3 3 1 . 3 5 4 . . . . . . . . . 3 . 1 Max Kills in Single Turn 2 | 1 1 2 2 1 . 1 1 1 . . . . . . . . . 2 . 1 Gunslinging 1 | . . . 1 . . . . . . . . . . . . . . . . . Exploded 2 | . . 2 2 . . 1 . . . . . . . . . . . 2 . 1 Melee 1 | . . . . . . . 1 1 . . . . . . . . . . . 1 Uniques/NPCs Destroyed . | . . . . . . . . . . . . . . . . . . . . . Combat | -11 -10 -10 -9 -9 -9 -8 -8 -8 -7 -6 -6 -6 -5 -4 -4 -4 -4 -3 -3 -3 -------- Run | Yrd Mat Min Mat Min Exi Min Mat Sto Fac Fac Low Low Fac Fac Upp Upp War Pro Res DSF Hostile Shots Fired 762 | . 16 7 44 . . 12 51 77 . . . 8 15 40 . 40 4 95 . 353 Missed 355 | . 2 1 10 . . 3 24 14 . . . 5 9 26 . 22 1 54 . 184 Hits 407 | . 14 6 34 . . 9 27 63 . . . 3 6 14 . 18 3 41 . 169 Melee 17 | . . . . . . . . . . . . . . . . . . 1 . 16 Projectile 390 | . 14 6 34 . . 9 27 63 . . . 3 6 14 . 18 3 40 . 153 AOE 1 | . . . . . . . . . . . . . . . . . . . . 1 Critical Strikes 20 | . . . 1 . . . . 2 . . . . . . . . . 4 . 13 Actively Blocked 14 | . . . . . . . . . . . . . . . . . . 4 . 10 Damage Taken 7388 | . 178 84 477 6 . 75 373 953 . . . 59 127 269 . 269 67 850 . 3601 Core 2478 | . 10 13 141 6 . . 149 238 . . . . 32 85 . 72 . 415 . 1317 Absorbed by Shields . | . . . . . . . . . . . . . . . . . . . . . Regen/Repaired (Parts) 73 | . . . . . . . . 36 . . . . . 37 . . . . . . Core Remaining (%) 78 | 100 . 90 . . . 63 . 29 100 . . 100 96 . . . . 50 . . Volleys Fired 101 | 4 30 9 23 13 . 5 . . . . . . . . . . . 5 . 12 Largest 4 | 2 2 2 4 4 . 4 . . . . . . . . . . . 1 . 1 Hottest 113 | 40 70 40 113 113 . 113 . . . . . . . . . . . . . 94 Shots Fired 230 | 8 59 14 72 52 . 8 . . . . . . . . . . . 5 . 12 Gun 211 | 8 59 12 68 52 . 4 . . . . . . . . . . . . . 8 Cannon . | . . . . . . . . . . . . . . . . . . . . . Launcher 14 | . . 2 4 . . 4 . . . . . . . . . . . . . 4 Special 5 | . . . . . . . . . . . . . . . . . . 5 . . Kinetic 165 | 8 52 12 51 39 . 3 . . . . . . . . . . . . . . Thermal 46 | . 7 . 17 13 . 1 . . . . . . . . . . . . . 8 Explosive 19 | . . 2 4 . . 4 . . . . . . . . . . . 5 . 4 Electromagnetic . | . . . . . . . . . . . . . . . . . . . . . Robot Hit Streak 15 | 4 11 15 7 9 . 8 . . . . . . . . . . . 6 . 9 Robot Miss Streak 4 | 1 3 2 4 4 . 2 . . . . . . . . . . . . . 3 Penetration Max . | . . . . . . . . . . . . . . . . . . . . . Secondary Targets 2 | . . . 2 . . . . . . . . . . . . . . . . . Max Gunslinging Chain 1 | . . . 1 . . . . . . . . . . . . . . . . . Shots Hit Robots 225 | 5 39 11 44 31 . 6 20 49 . . . . . 2 . . 4 3 . 11 Core Hits 109 | 4 15 5 30 13 . 4 5 16 . . . . . 1 . . . 8 . 8 Critical Kills . | . . . . . . . . . . . . . . . . . . . . . Critical Parts Destroyed . | . . . . . . . . . . . . . . . . . . . . . Critical Strikes 7 | . . . . . . . 2 3 . . . . . . . . . 2 . . Sever 7 | . . . . . . . 2 3 . . . . . . . . . 2 . . Melee Attacks 124 | . . . . . . . 22 68 . . . . 1 17 . 2 4 . . 10 Impact . | . . . . . . . . . . . . . . . . . . . . . Slashing 120 | . . . . . . . 22 68 . . . . 1 17 . 2 . . . 10 Piercing . | . . . . . . . . . . . . . . . . . . . . . Sneak Attacks 13 | . . . . . . . . 9 . . . . . . . . 4 . . . Combat Hostiles . | . . . . . . . . . . . . . . . . . . . . . Follow-up Attacks 1 | . . . . . . . . 1 . . . . . . . . . . . . Damage Inflicted 6862 | 53 400 234 784 382 . 270 611 1840 . . . . . 68 . . . 1766 . 454 Guns 1460 | 53 400 70 391 369 . 32 . . . . . . . . . . . . . 145 Cannons . | . . . . . . . . . . . . . . . . . . . . . Explosions 2601 | . . 164 393 . . 238 . . . . . . . . . . . 1570 . 236 Melee 2590 | . . . . . . . 611 1840 . . . . . 68 . . . . . 71 Ramming 15 | . . . . 13 . . . . . . . . . . . . . . . 2 Kinetic 1020 | 53 320 70 264 281 . 32 . . . . . . . . . . . . . . Thermal 440 | . 80 . 127 88 . . . . . . . . . . . . . . . 145 Explosive 2601 | . . 164 393 . . 238 . . . . . . . . . . . 1570 . 236 Electromagnetic . | . . . . . . . . . . . . . . . . . . . . . Impact . | . . . . . . . . . . . . . . . . . . . . . Slashing 2786 | . . . . . . . 611 1840 . . . . . 68 . . . 196 . 71 Piercing . | . . . . . . . . . . . . . . . . . . . . . Highest Corruption 9 | . 1 1 . . . . . 3 . . . . . . . . . . . 9 Average Corruption 2 | . 1 1 . . . . . 2 . . . . . . . . . . . 5 Corruption Purged . | . . . . . . . . . . . . . . . . . . . . . Corruption Blocked . | . . . . . . . . . . . . . . . . . . . . . Effects 21 | . 1 . . . . . . 18 . . . . . . . . . . . 2 Message Errors 8 | . . . . . . . . 8 . . . . . . . . . . . . Matter Fused 6 | . 1 . . . . . . 5 . . . . . . . . . . . . Heat Flow Errors 2 | . . . . . . . . 1 . . . . . . . . . . . 1 Energy Discharges 4 | . . . . . . . . 3 . . . . . . . . . . . 1 Parts Fused 1 | . . . . . . . . 1 . . . . . . . . . . . . Overload Shots . | . . . . . . . . . . . . . . . . . . . . . Overflow Damage 256 | . . . . . . 9 19 181 . . . . . . . . . 35 . 12 Projectiles . | . . . . . . . . . . . . . . . . . . . . . Explosions 56 | . . . . . . 9 . . . . . . . . . . . 35 . 12 Melee 200 | . . . . . . . 19 181 . . . . . . . . . . . . Knockbacks . | . . . . . . . . . . . . . . . . . . . . . Impact . | . . . . . . . . . . . . . . . . . . . . . Kinetic . | . . . . . . . . . . . . . . . . . . . . . Secondary . | . . . . . . . . . . . . . . . . . . . . . Self-Inflicted Damage 188 | . . 37 . 6 . . . . . . . . . . . . . . . 145 Shots 6 | . . 2 . . . . . . . . . . . . . . . . . 4 Rammed 4 | . . . . 1 . . . . . . . . . . . . . . . 3 Targets Rammed 5 | . . . . 1 . . . . . . . . . . . . . . . 4 Kicked . | . . . . . . . . . . . . . . . . . . . . . Crushed 1 | . . . . . . . . . . . . . . . . . . . . 1 Highest Temperature 523 | . 117 . 523 255 . 51 . 228 12 4 4 27 244 303 . . . . . 118 Average Temperature 103 | . 42 . 182 74 . 28 . 114 6 2 2 20 120 139 . . . . . 62 Received Heat Transfer 1102 | . 102 . 165 . . . 117 342 . . . 27 12 18 . . . 141 . 178 Effects 4 | . . . 4 . . . . . . . . . . . . . . . . . Shutdowns 1 | . . . 1 . . . . . . . . . . . . . . . . . Matter Decay 1 | . . . 1 . . . . . . . . . . . . . . . . . Damage (major) 1 | . . . 1 . . . . . . . . . . . . . . . . . Damage (core) 1 | . . . 1 . . . . . . . . . . . . . . . . . Siege Activations . | . . . . . . . . . . . . . . . . . . . . . Martial Activations . | . . . . . . . . . . . . . . . . . . . . . Shielding Activations . | . . . . . . . . . . . . . . . . . . . . . Robots Disrupted . | . . . . . . . . . . . . . . . . . . . . . Combat Hostiles . | . . . . . . . . . . . . . . . . . . . . . Robots Corrupted . | . . . . . . . . . . . . . . . . . . . . . Combat Hostiles . | . . . . . . . . . . . . . . . . . . . . . Parts Fried . | . . . . . . . . . . . . . . . . . . . . . Impact Corruptions . | . . . . . . . . . . . . . . . . . . . . . Robots Melted . | . . . . . . . . . . . . . . . . . . . . . Combat Hostiles . | . . . . . . . . . . . . . . . . . . . . . Parts Melted 2 | . 1 . . 1 . . . . . . . . . . . . . . . . Heat Transferred 1036 | . 222 . 370 259 . . . . . . . . . . . . . . . 185 Parts Sabotaged . | . . . . . . . . . . . . . . . . . . . . . Parts Stolen . | . . . . . . . . . . . . . . . . . . . . . Parts Stripped . | . . . . . . . . . . . . . . . . . . . . . Power Chain Reactions . | . . . . . . . . . . . . . . . . . . . . . Alert | -11 -10 -10 -9 -9 -9 -8 -8 -8 -7 -6 -6 -6 -5 -4 -4 -4 -4 -3 -3 -3 ------- Run | Yrd Mat Min Mat Min Exi Min Mat Sto Fac Fac Low Low Fac Fac Upp Upp War Pro Res DSF Maximum Alert Level . | . . . . . . . . . . . . . . . . . . . . . Low Security (%) 100 | 100 100 100 100 100 . 100 100 100 100 100 . . 100 100 . . . . 100 100 Level 1 . | . . . . . . . . . . . . . . . . . . . . . Level 2 . | . . . . . . . . . . . . . . . . . . . . . Level 3 . | . . . . . . . . . . . . . . . . . . . . . Level 4 . | . . . . . . . . . . . . . . . . . . . . . Level 5 . | . . . . . . . . . . . . . . . . . . . . . High Security . | . . . . . . . . . . . . . . . . . . . . . Max Security . | . . . . . . . . . . . . . . . . . . . . . Peak Influence 189 | 5 60 73 153 42 . 75 100 95 39 . . . 189 133 . . . . 16 42 Initial 88 | . . 1 20 39 . . 17 29 39 . . . . 88 . . . . 16 12 Average 26 | 1 15 58 74 6 . 21 27 21 6 . . . 76 73 . . . . 16 17 Influence Increases 1993 | 15 127 82 273 75 . 85 120 418 45 . . . 211 210 . . 90 155 . 87 Destroy 0b10 Robot/C 860 | . 80 60 200 20 . 60 100 220 . . . . . . . . . 80 . 40 Destroy 0b10 Robot/NC 90 | 15 5 . 10 35 . . . 25 . . . . . . . . . . . . Destroy Leader 214 | . 30 10 50 10 . 10 20 74 . . . . . . . . . . . 10 Trap Triggered on 0b10 10 | . . . . 10 . . . . . . . . . . . . . . . . Successful Hack 35 | . 12 . . . . . . 9 . . . . 14 . . . . . . . Disable Machine 60 | . . . . . . . . 60 . . . . . . . . . . . . Destroy Structure 94 | . . 12 13 . . 15 . . . . . . 2 30 . . . . . 22 Partial Spotted 45 | . . . . . . . . . 15 . . . 30 . . . . . . . Lose Combat Pursuer 585 | . . . . . . . . 30 30 . . . 165 180 . . 90 75 . 15 Influence Decreases 1993 | 15 123 33 223 178 . 40 95 399 134 . . . 30 293 87 11 10 210 9 103 Entered New Map 445 | . . 3 33 64 . . 28 41 50 . . . . 93 37 3 . 80 9 4 Time Decay 1219 | 15 123 20 170 114 . 40 57 298 84 . . . 30 170 50 8 . 40 . . Lost Part 329 | . . 10 20 . . . 10 60 . . . . . 30 . . 10 90 . 99 Squads Dispatched 16 | . 2 . 2 . . . 1 2 1 . . . 1 5 . . . . . 2 Investigation 4 | . 1 . . . . . . 1 . . . . . 2 . . . . . . Extermination 3 | . . . . . . . . . 1 . . . 1 1 . . . . . . Reinforcement 9 | . 1 . 2 . . . 1 1 . . . . . 2 . . . . . 2 Assault . | . . . . . . . . . . . . . . . . . . . . . Garrison . | . . . . . . . . . . . . . . . . . . . . . Intercept . | . . . . . . . . . . . . . . . . . . . . . Searches Triggered . | . . . . . . . . . . . . . . . . . . . . . Construction Impeded . | . . . . . . . . . . . . . . . . . . . . . Haulers Reinforced . | . . . . . . . . . . . . . . . . . . . . . Active Scanning Responses . | . . . . . . . . . . . . . . . . . . . . . Cargo Convoy Interrupts . | . . . . . . . . . . . . . . . . . . . . . Stealth | -11 -10 -10 -9 -9 -9 -8 -8 -8 -7 -6 -6 -6 -5 -4 -4 -4 -4 -3 -3 -3 --------- Run | Yrd Mat Min Mat Min Exi Min Mat Sto Fac Fac Low Low Fac Fac Upp Upp War Pro Res DSF Distress Signals 9 | . 1 . . . . . 1 3 1 . . . 2 1 . . . . . . Communications Jammed . | . . . . . . . . . . . . . . . . . . . . . Distress Signals . | . . . . . . . . . . . . . . . . . . . . . Times Spotted 135 | . 7 3 17 2 . 3 10 14 5 . . 4 10 13 . 5 8 17 . 17 Peak Tracking Total 12 | . 3 3 4 2 . 3 6 5 4 . . 4 9 5 . 5 6 9 . 12 Tactical Retreats 14 | . . . . . . . . 2 2 . . . 2 4 . . 1 2 . 1 Traps | -11 -10 -10 -9 -9 -9 -8 -8 -8 -7 -6 -6 -6 -5 -4 -4 -4 -4 -3 -3 -3 ------- Run | Yrd Mat Min Mat Min Exi Min Mat Sto Fac Fac Low Low Fac Fac Upp Upp War Pro Res DSF Traps Triggered 10 | . 4 . . . . . . 2 3 . . . . 1 . . . . . . Indirectly . | . . . . . . . . . . . . . . . . . . . . . Trap Hack Attempts . | . . . . . . . . . . . . . . . . . . . . . Triggered . | . . . . . . . . . . . . . . . . . . . . . Disarmed . | . . . . . . . . . . . . . . . . . . . . . Reprogrammed . | . . . . . . . . . . . . . . . . . . . . . Reused 1 | . . . . 1 . . . . . . . . . . . . . . . . Traps Extracted . | . . . . . . . . . . . . . . . . . . . . . Installed 1 | . . . . 1 . . . . . . . . . . . . . . . . Triggered 1 | . . . . 1 . . . . . . . . . . . . . . . . Most Traps Carried 1 | . . . . 1 . . . . . . . . . . . . . . . . Machines | -11 -10 -10 -9 -9 -9 -8 -8 -8 -7 -6 -6 -6 -5 -4 -4 -4 -4 -3 -3 -3 ---------- Run | Yrd Mat Min Mat Min Exi Min Mat Sto Fac Fac Low Low Fac Fac Upp Upp War Pro Res DSF Machines Disabled 6 | . . . . . . . . 4 . . . . . . . . . 2 . . Max in Single Turn 2 | . . . . . . . . 1 . . . . . . . . . 2 . . Machines Repaired . | . . . . . . . . . . . . . . . . . . . . . Machines Dismantled . | . . . . . . . . . . . . . . . . . . . . . Machines Sabotaged . | . . . . . . . . . . . . . . . . . . . . . Overloaded Fab Kills . | . . . . . . . . . . . . . . . . . . . . . Hacking | -11 -10 -10 -9 -9 -9 -8 -8 -8 -7 -6 -6 -6 -5 -4 -4 -4 -4 -3 -3 -3 --------- Run | Yrd Mat Min Mat Min Exi Min Mat Sto Fac Fac Low Low Fac Fac Upp Upp War Pro Res DSF Machines Accessed 35 | . 3 . 3 . 1 . 1 8 5 . . . 2 3 1 . 7 . 1 . Terminals 15 | . 1 . 3 . . . 1 5 2 . . . 1 1 . . . . 1 . Fabricators 1 | . . . . . . . . . . . . . . 1 . . . . . . Repair Stations 4 | . 1 . . . . . . 2 . . . . . 1 . . . . . . Recycling Units 4 | . 1 . . . . . . 1 1 . . . 1 . . . . . . . Scanalyzers 1 | . . . . . . . . . 1 . . . . . . . . . . . Garrison Access 1 | . . . . . . . . . 1 . . . . . . . . . . . Total Hacks 63 | . 6 . 3 . 4 . 2 14 9 . . . 4 9 1 . 10 . 1 . Successful 36 | . 3 . 2 . 4 . 1 8 . . . . 2 4 1 . 10 . 1 . Failed 27 | . 3 . 1 . . . 1 6 9 . . . 2 5 . . . . . . Catastrophic 5 | . . . 1 . . . . 3 1 . . . . . . . . . . . Database Lockouts . | . . . . . . . . . . . . . . . . . . . . . Manual 11 | . 2 . 3 . . . 2 . 2 . . . . 2 . . . . . . Terminals 21 | . 2 . 3 . . . 2 7 2 . . . 2 2 . . . . 1 . Fabricators 3 | . . . . . . . . . . . . . . 3 . . . . . . Repair Stations 13 | . 3 . . . . . . 6 . . . . . 4 . . . . . . Recycling Units 6 | . 1 . . . . . . 1 2 . . . 2 . . . . . . . Scanalyzers 3 | . . . . . . . . . 3 . . . . . . . . . . . Garrison Access 2 | . . . . . . . . . 2 . . . . . . . . . . . Terminal Hacks 24 | . 2 . 1 . 4 . 1 3 . . . . 1 . 1 . 10 . 1 . Record 12 | . . . . . 4 . . . . . . . . . . . 8 . . . Part Schematic 1 | . . . . . . . 1 . . . . . . . . . . . . . Robot Analysis 2 | . 2 . . . . . . . . . . . . . . . . . . . Open Door 6 | . . . . . . . . 3 . . . . . . 1 . 2 . . . Open DSF 1 | . . . . . . . . . . . . . . . . . . . 1 . Level Access Points 1 | . . . . . . . . . . . . . 1 . . . . . . . Branch Access Points 1 | . . . 1 . . . . . . . . . . . . . . . . . Fabricator Hacks . | . . . . . . . . . . . . . . . . . . . . . Repair Station Hacks 8 | . . . . . . . . 4 . . . . . 4 . . . . . . Scan Component 6 | . . . . . . . . 3 . . . . . 3 . . . . . . Repair 2 | . . . . . . . . 1 . . . . . 1 . . . . . . Recycling Unit Hacks 3 | . 1 . . . . . . 1 . . . . 1 . . . . . . . Retrieve Components 3 | . 1 . . . . . . 1 . . . . 1 . . . . . . . Scanalyzer . | . . . . . . . . . . . . . . . . . . . . . Garrison Access Hacks . | . . . . . . . . . . . . . . . . . . . . . Unauthorized Hacks 1 | . . . 1 . . . . . . . . . . . . . . . . . Terminals 1 | . . . 1 . . . . . . . . . . . . . . . . . Track 1 | . . . 1 . . . . . . . . . . . . . . . . . Fabricators . | . . . . . . . . . . . . . . . . . . . . . Repair Stations . | . . . . . . . . . . . . . . . . . . . . . Recycling Units . | . . . . . . . . . . . . . . . . . . . . . Scanalyzers . | . . . . . . . . . . . . . . . . . . . . . Garrison Access . | . . . . . . . . . . . . . . . . . . . . . Data Cores Recovered . | . . . . . . . . . . . . . . . . . . . . . Used . | . . . . . . . . . . . . . . . . . . . . . Hacking Detections 21 | . 3 . 2 . . . 1 5 5 . . . 2 3 . . . . . . Full Trace Events 3 | . . . . . . . . 1 . . . . . 2 . . . . . . Feedback Events . | . . . . . . . . . . . . . . . . . . . . . Feedback Blocked . | . . . . . . . . . . . . . . . . . . . . . Robot Schematics Acquired . | . . . . . . . . . . . . . . . . . . . . . Robots Built . | . . . . . . . . . . . . . . . . . . . . . Authchips . | . . . . . . . . . . . . . . . . . . . . . Time . | . . . . . . . . . . . . . . . . . . . . . Total Robot Build Rating . | . . . . . . . . . . . . . . . . . . . . . Part Schematics Acquired 1 | . . . . . . . 1 . . . . . . . . . . . . . Parts Built . | . . . . . . . . . . . . . . . . . . . . . Authchips . | . . . . . . . . . . . . . . . . . . . . . Time . | . . . . . . . . . . . . . . . . . . . . . Total Part Build Rating . | . . . . . . . . . . . . . . . . . . . . . Part Studies Acquired . | . . . . . . . . . . . . . . . . . . . . . Parts Repaired 2 | . . . . . . . . 1 . . . . . 1 . . . . . . Time 95 | . . . . . . . . 44 . . . . . 51 . . . . . . Parts Recycled . | . . . . . . . . . . . . . . . . . . . . . Recycled Matter . | . . . . . . . . . . . . . . . . . . . . . Retrieved Matter . | . . . . . . . . . . . . . . . . . . . . . Retrieved Components 14 | . 2 . . . . . . 10 . . . . 2 . . . . . . . Parts Scanalyzed . | . . . . . . . . . . . . . . . . . . . . . Part Schematics Acquired . | . . . . . . . . . . . . . . . . . . . . . Parts Damaged . | . . . . . . . . . . . . . . . . . . . . . Bothacking | -11 -10 -10 -9 -9 -9 -8 -8 -8 -7 -6 -6 -6 -5 -4 -4 -4 -4 -3 -3 -3 ------------ Run | Yrd Mat Min Mat Min Exi Min Mat Sto Fac Fac Low Low Fac Fac Upp Upp War Pro Res DSF Used RIF Installer . | . . . . . . . . . . . . . . . . . . . . . Robots Hacked 3 | . . . . . . . . . . . . . . . . . 3 . . . Non-combat . | . . . . . . . . . . . . . . . . . . . . . Combat 3 | . . . . . . . . . . . . . . . . . 3 . . . Robot Hacks Applied 3 | . . . . . . . . . . . . . . . . . 3 . . . parse_system 3 | . . . . . . . . . . . . . . . . . 3 . . . Relay Couplers Released . | . . . . . . . . . . . . . . . . . . . . . Fabnet Peak Effective % . | . . . . . . . . . . . . . . . . . . . . . Robots Rewired . | . . . . . . . . . . . . . . . . . . . . . Allies Hacked . | . . . . . . . . . . . . . . . . . . . . . Hacks Repelled . | . . . . . . . . . . . . . . . . . . . . . Allies | -11 -10 -10 -9 -9 -9 -8 -8 -8 -7 -6 -6 -6 -5 -4 -4 -4 -4 -3 -3 -3 -------- Run | Yrd Mat Min Mat Min Exi Min Mat Sto Fac Fac Low Low Fac Fac Upp Upp War Pro Res DSF Total Allies 1 | . . . . 1 . . . . . . . . . . . . . . . . Largest Group 1 | . . . . 1 1 . . . . . . . . . . . . . . . Highest-Rated Group 31 | . . . . 31 31 . . . . . . . . . . . . . . . Highest-Rated Ally 31 | . . . . 31 31 . . . . . . . . . . . . . . . Total Orders . | . . . . . . . . . . . . . . . . . . . . . Ally Attacks . | . . . . . . . . . . . . . . . . . . . . . Total Damage . | . . . . . . . . . . . . . . . . . . . . . Kills . | . . . . . . . . . . . . . . . . . . . . . Allies Corrupted . | . . . . . . . . . . . . . . . . . . . . . Allies Melted . | . . . . . . . . . . . . . . . . . . . . . Intel | -11 -10 -10 -9 -9 -9 -8 -8 -8 -7 -6 -6 -6 -5 -4 -4 -4 -4 -3 -3 -3 ------- Run | Yrd Mat Min Mat Min Exi Min Mat Sto Fac Fac Low Low Fac Fac Upp Upp War Pro Res DSF Active Infowar (turns) 1114 | 67 108 . . 5 . . . . 349 18 108 8 91 344 . . . . . 16 Sensors 934 | . . . . 5 . . . . 349 18 108 8 91 339 . . . . . 16 Seismic 175 | 67 108 . . . . . . . . . . . . . . . . . . . Jamming 667 | . . . . . . . . . 100 16 108 8 91 344 . . . . . . Robot Analysis Total 2 | . 2 . . . . . . . . . . . . . . . . . . . Derelict Logs Recovered 6 | . . . . 2 . . . . . . 2 1 . . 1 . . . . . Drone Launches . | . . . . . . . . . . . . . . . . . . . . . Drone Recoveries . | . . . . . . . . . . . . . . . . . . . . . Exploration | -11 -10 -10 -9 -9 -9 -8 -8 -8 -7 -6 -6 -6 -5 -4 -4 -4 -4 -3 -3 -3 ------------- Run | Yrd Mat Min Mat Min Exi Min Mat Sto Fac Fac Low Low Fac Fac Upp Upp War Pro Res DSF Turns Passed 5216 | 122 421 51 343 842 149 201 234 953 366 18 108 8 91 344 109 71 391 130 9 255 Spaces Moved 6583 | 59 251 23 214 680 130 160 152 477 795 55 368 27 318 773 367 233 1027 317 18 139 Core 112 | 4 . . . . . . . 4 . . . . . . . . . 28 18 58 Treads 134 | 55 40 . . . . . . . . . . . . . . . . . . 39 Legs 11 | . . . . . . . . . . . . . . . . . . . . 11 Wheels 2043 | . 211 23 214 680 130 160 152 473 . . . . . . . . . . . . Hover . | . . . . . . . . . . . . . . . . . . . . . Flight 4283 | . . . . . . . . . 795 55 368 27 318 773 367 233 1027 289 . 31 Fastest Speed 22 | 50 115 115 115 115 115 115 115 115 31 28 28 28 25 22 28 28 34 31 50 34 Average Speed 62 | 152 122 115 117 115 115 115 115 147 31 28 28 28 25 26 28 28 36 34 50 88 Slowest Speed 1050 | 160 160 115 145 115 115 115 145 1050 31 28 28 28 28 28 28 34 104 50 50 250 Overloaded Moves . | . . . . . . . . . . . . . . . . . . . . . Propulsion Burnouts . | . . . . . . . . . . . . . . . . . . . . . Robots Hopped 17 | . . . . . . . . . 12 . . . 2 . . . 2 1 . . Potential Cave-ins . | . . . . . . . . . . . . . . . . . . . . . Cave-ins Triggered . | . . . . . . . . . . . . . . . . . . . . . Exploration Rate (%) 38 | 3 51 7 23 97 49 51 18 46 25 2 57 7 16 23 55 32 96 57 1 83 Regions Visited 20 Branch Regions 11 Pre-discovered Areas 4 | . . . . 2 1 . . . . . . . . . 1 . . . . . Known Exits Taken 11 | . . . 1 . . . . . 1 1 1 1 1 1 1 1 1 . 1 . Unknown Exits Taken 9 | 1 1 1 . 1 1 1 1 1 . . . . . . . . . 1 . . Scrap Searched 10 | . . . . 2 . 1 . . . . 3 . . . 2 1 . 1 . . Spaces Dug 16 | . . . . . . . . . . . . . 1 15 . . . . . . Terrain Destroyed 120 | . . 18 10 . . 16 . . . . . . 1 15 . . . 49 . 11 Melee 16 | . . . . . . . . . . . . . 1 15 . . . . . . Projectile . | . . . . . . . . . . . . . . . . . . . . . AOE 104 | . . 18 10 . . 16 . . . . . . . . . . . 49 . 11 Terrain Rammed . | . . . . . . . . . . . . . . . . . . . . . Walls Destroyed . | . . . . . . . . . . . . . . . . . . . . . Machines Disabled . | . . . . . . . . . . . . . . . . . . . . . Actions | -11 -10 -10 -9 -9 -9 -8 -8 -8 -7 -6 -6 -6 -5 -4 -4 -4 -4 -3 -3 -3 --------- Run | Yrd Mat Min Mat Min Exi Min Mat Sto Fac Fac Low Low Fac Fac Upp Upp War Pro Res DSF Total 7408 | 81 311 35 272 715 129 169 201 698 907 56 371 26 325 888 372 234 1044 329 17 228 Wait 297 | . 6 . 2 10 . . 8 115 38 . . . 1 76 3 . 5 4 . 29 Move 6536 | 58 250 22 213 679 129 159 151 476 776 54 367 26 313 772 366 232 1023 314 17 139 Hop 10 | . . . . . . . . . 6 . . . 2 . . . 1 1 . . Pick Up 73 | 10 12 2 13 4 . . 3 10 8 . 1 . 3 2 1 . . . . 4 Fast Attach 66 | 7 5 . . 1 . 1 4 11 8 . 1 . 1 1 1 . 2 2 . 21 Attach 33 | . 3 . 4 1 . . 2 1 5 2 . . 2 2 1 . 3 2 . 5 Detach 17 | . 2 . . . . . 1 3 3 . . . . 1 . . 3 1 . 3 Swap 17 | . 1 2 5 1 . 3 2 1 1 . 1 . . . . . . . . . Drop 68 | 2 2 . 12 4 . 1 8 14 17 . 1 . 2 2 . . 3 . . . Fire 101 | 4 30 9 23 13 . 5 . . . . . . . . . . . 5 . 12 Melee 123 | . . . . . . . 22 67 . . . . 1 17 . 2 4 . . 10 Ram 1 | . . . . 1 . . . . . . . . . . . . . . . . Kick . | . . . . . . . . . . . . . . . . . . . . . Crush 4 | . . . . . . . . . . . . . . . . . . . . 4 Escape Stasis 60 | . . . . . . . . . 45 . . . . 15 . . . . . . Rewire 1 | . . . . . . . . . . . . . . . . . . . . 1 Trap 1 | . . . . 1 . . . . . . . . . . . . . . . . Miscellaneous . | . . . . . . . . . . . . . . . . . . . . . Route ------- -11/Scrapyard -10/Materials (discovered 2 exits: *Mat / [*Min]) -10/Mines -9/Materials -9/Mines (discovered 3 exits: *Mat x2 / *Exi) -9/Exiles (discovered 2 exits: [*Min x2]) -8/Mines -8/Materials -8/Storage -7/Factory -6/Factory -6/Lower Caves -6/Lower Caves -5/Factory (discovered 4 exits: *Fac x4) -4/Factory -4/Upper Caves -4/Upper Caves -4/Warlord -3/Proximity Caves -3/Research -3/DSF (discovered 1 exit: [*Res]) History --------- Turn | Location | Event 12 | -11/Scrapyard | Discovered new exit (range 15) 123 | -11/Scrapyard | Entered Materials 309 | -10/Materials | Build established: Mutant 382 | -10/Materials | Discovered new exit (range 8) 535 | -10/Materials | Discovered new exit (range 9) 544 | -10/Materials | Entered Mines 563 | -10/Mines | Met a Derelict bent on vengeance 587 | -10/Mines | Discovered new exit (range 8) 595 | -10/Mines | Entered Materials 595 | -9/Materials | Evolved 2 slots: Weapon x2 848 | -9/Materials | Identified exit to Mines 882 | -9/Materials | Build established: Tank 938 | -9/Materials | Entered Mines 1079 | -9/Mines | Found a hidden stash of uninstalled traps 1137 | -9/Mines | Found a damaged Exp. Sensor Array with a note attached 1142 | -9/Mines | Found Prototype Device 1142 | -9/Mines | Identified Exp. Sensor Array 1177 | -9/Mines | Discovered new exit (range 8) 1235 | -9/Mines | YI-UF0 nonchalantly dropped a Grenade Launcher on the ground 1373 | -9/Mines | Learned location of Storage (-8) 1588 | -9/Mines | Discovered new exit (range 12) 1759 | -9/Mines | Received a Mining Laser from a helpful Derelict 1774 | -9/Mines | Deemed a non-threat by the Exiles lab entrance 1775 | -9/Mines | Discovered new exit (range 5) 1780 | -9/Mines | Entered Exiles 1780 | -9/Exiles | Accompanied by 1 ally 1795 | -9/Exiles | Discovered new exit (range 15) 1809 | -9/Exiles | Met 8R-AWN 1829 | -9/Exiles | Met EX-HEX 1872 | -9/Exiles | Met EX-DEC 1882 | -9/Exiles | Learned location of Zion (-6) 1914 | -9/Exiles | Discovered new exit (range 15) 1929 | -9/Exiles | Entered Mines 2117 | -8/Mines | Discovered new exit (range 12) 2130 | -8/Mines | Entered Materials 2130 | -8/Materials | Evolved 2 slots: Utility x2 2357 | -8/Materials | Discovered new exit (range 4) 2364 | -8/Materials | Entered Storage 2433 | -8/Storage | Build established: Mutant 3121 | -8/Storage | Repaired Microactuators 3197 | -8/Storage | Core integrity fell below 50% 3233 | -8/Storage | Lost 3 parts (1p1n1u) 3306 | -8/Storage | Discovered new exit (range 3) 3317 | -8/Storage | Entered Factory 3317 | -7/Factory | Evolved 2 slots: Propulsion x2 3627 | -7/Factory | Build established: Sprinter 3677 | -7/Factory | Discovered new exit (range 16) 3681 | -7/Factory | Identified exit to Factory 3683 | -7/Factory | Entered another Factory area 3683 | -6/Factory | Evolved 2 slots: Power x1, Propulsion x1 3696 | -6/Factory | Discovered new exit (range 15) 3700 | -6/Factory | Identified exit to Lower Caves 3701 | -6/Factory | Entered Lower Caves 3714 | -6/Lower Caves | Learned 4 Factory zone layouts 3775 | -6/Lower Caves | Learned location of 1 exit from Factory 3792 | -6/Lower Caves | Discovered new exit (range 15) 3796 | -6/Lower Caves | Identified exit to Lower Caves 3809 | -6/Lower Caves | Entered another Lower Caves area 3810 | -6/Lower Caves | Identified exit to Factory 3817 | -6/Lower Caves | Entered Factory 3817 | -5/Factory | Evolved 2 slots: Propulsion x1, Utility x1 3818 | -5/Factory | Identified exit to Factory 3876 | -5/Factory | Spotted B-75 Beast 3908 | -5/Factory | Entered another Factory area 3908 | -4/Factory | Evolved 2 slots: Power x1, Propulsion x1 3978 | -4/Factory | Repaired Imp. Flight Unit 4127 | -4/Factory | Build established: Hacker-Sprinter 4226 | -4/Factory | Spotted B-86 Titan 4244 | -4/Factory | Discovered new exit (range 11) 4246 | -4/Factory | Identified exit to Upper Caves 4252 | -4/Factory | Entered Upper Caves 4306 | -4/Upper Caves | Encountered a Warlord checkpoint 4358 | -4/Upper Caves | Discovered new exit (range 13) 4361 | -4/Upper Caves | Identified exit to Upper Caves 4361 | -4/Upper Caves | Entered another Upper Caves area 4428 | -4/Upper Caves | Discovered new exit (range 15) 4432 | -4/Upper Caves | Identified exit to Warlord 4432 | -4/Upper Caves | Entered Warlord 4458 | -4/Warlord | Discovered new exit (range 8) 4460 | -4/Warlord | Identified exit to Proximity Caves 4461 | -4/Warlord | Lost 5 parts (1p3n1w) 4619 | -4/Warlord | Met Warlord 4637 | -4/Warlord | Warlord's base attacked by MAIN.C 4642 | -4/Warlord | Found Prototype Special Weapon 4642 | -4/Warlord | Identified RU-N14's Throwing Claymores v3 4747 | -4/Warlord | Build established: Hacker-Mutant 4760 | -4/Warlord | Found Prototype Energy Gun 4760 | -4/Warlord | Identified Vortex Shotgun 4800 | -4/Warlord | Opened side exit 4823 | -4/Warlord | Entered Proximity Caves 4952 | -3/Proximity Caves | Discovered new exit (range 2) 4953 | -3/Proximity Caves | Entered Research 4953 | -3/Research | Evolved 2 slots: Utility x2 4962 | -3/Research | Identified exit to DSF 4962 | -3/Research | Entered DSF 4970 | -3/DSF | Lost 7 parts (2p4n1u) 5020 | -3/DSF | Additional patrols routed to DSF 5050 | -3/DSF | Lost 4 parts (2n1u1w) 5169 | -3/DSF | Released all parts (7) 5181 | -3/DSF | Core integrity fell below 50% 5185 | -3/DSF | Lost 5 parts (4n1w) 5206 | -3/DSF | Released all parts (5) 5210 | -3/DSF | Core integrity fell below 20% 5212 | -3/DSF | Discovered new exit (range 15) 5217 | -3/DSF | Destroyed by G-67 Veteran with Plasma Rifle Last Messages --------------- 05205_ Knocked back. 05206_ Lgt. Particle Reactor destroyed. 05206_ Knocked back. 05206_ Released Centrium Leg. 05206_ Released Lgt. Particle Reactor. 05206_ Released Centrium Leg. 05207_ Acquired Lgt. Particle Reactor. 05209_ Knocked back. 05212_ Penetrated by Slug. 05212_ Knocked back. 05212_ EXIT=FOUND 05212_ C-30 ARC bursts open, deploying its payload. 05212_ S-43 Plague unfolds itself. 05213_ C-30 ARC bursts open, deploying its payload. 05213_ L-61 Swordsman unfolds itself. 05213_ G-67 Veteran unfolds itself. 05213_ Critical hit (Burn: +50). 05213_ Q-thruster destroyed. Map ----- +----------------------------------------------------+ | ??????#"""""######### ^^ ####### | | ??????#"""""## # # ^ ^ # #]] | | ????"##"" | | ????""""" ! | | ????###"" ##!! #% ### [#]] | | ??????### ###!! % ###[[[#]] | | ???????## ##### # =% ####### | | ???????#! !!#?###### % #?????? | | ???????#!" !#??????# = #?????? | | ???????##%"###??????## # #?????? | | ???????# s ! #??????#== !!#?????? | | ???????# s #??????#== !!+ ????? | | ???????# !!#??????#== !!###???? | | ??????### ! ########## ######### | | ??????# ##***#!!!### ###***# | | ??????# ##***#!!!## ##***# ! | | ??????#! ^ H * | | ??????#!!^ | | ??????#!!^ | | ??????#!!! ##!!!#== ## % ##!!!# | | ??????#!! ##!!!#== ### ###!!!# | | ??????### #####= ###?# #?####### | | ???????#= ==#?####??!! ==??????? | | ???????#= ==#??????#!! ==#?????? | | ???????#= ==#??????#!! ==#?????? | | ???????## @###??????### ###?????? | | ???????# ????????? ???????? | | ???????# l #???????? ???????? | | ???????## ###??????? ??????? | | ????????#gg#?????????## ##??????? | | ????????"g ??????????# #???????? | | ????????" % ?????????? ???????? | | ???????""< ??????????? ???????? | | ???????"""""??????????? ^????????? | | ???????"""""??????????????????????? | | ????????##"#??????????????????????? | | ??????????????????????????????????? | | ??????????????????????????????????? | | ??????????????????????????????????? | | ??????????????????????????????????? | | ??????????????????????????????????? | | ??????????????????????????????????? | | ??????????????????????????????????? | | | | | | | | | | | | | | | +----------------------------------------------------+ Best States ------------- Heat Dissipation 46 Energy Generation 59 Energy Capacity 570 Matter Stores 300 Matter Capacity 300 Sight Range 16 Robot Scan Range 20 Terrain Scan Density 10 Jamming Range 14 Armor Coverage 225 Melee Speed Boost 40 Evasion (%) 65 Recoil Reduction 3 Offensive Hacking 34 Item Schematics ----------------- Hcp. Storage Unit | -8/Materials | Hacked Robot Schematics ------------------ None Fabricated ------------ Nothing Repaired ---------- Microactuators | 10% | -8/Storage Imp. Flight Unit | 7% | -4/Factory Studied --------- None Alien Tech Used ----------------- None Achievements -------------- A Powerful Ally? Challenges ------------ None Game ------ Seed ProjectionPhasingClaws Manual? 0 Play Time 01:51:37 Cumulative 63.6 hours Start 2026.08.26 @ 20:48:51 End 2026.08.26 @ 23:53:46 Sessions 2 Manual Loads 0 Difficulty Rogue Special Mode None Game No. 113 Rogue 113 Adventurer 0 Explorer 0 Win Type - Total 1 Types 1/0/0/0/0/0/0/0/0/0 Lore% 39 Gallery% 38 Achievement% 29 Wizard Run 0 Options --------- Layout 1 ASCII 1 Keyboard 0 Movement Numpad Keybinds 0 Fullscreen 2 Font 24/Smallcaps Map View 50x35 Zoom Use 0% Tactical HUD 1 Map Filters NONE Filters NONE Steam 1 RUN: febfa554-e187-4e50-81d4-803dddd97814